fUST/lending_fUST_20240115
["ID","MTS","AMOUNT","RATE_DAILY","PERIOD"]
[311687155,1705332641325,-500.69084539,0.00030136,2]
[311687157,1705332641335,-500.0,0.00030136,2]
[311687159,1705332641344,-500.0,0.00030136,2]
[311687161,1705332641354,-500.0,0.00030136,2]
[311687163,1705332641363,-500.0,0.00030136,2]
[311687165,1705332641372,-500.0,0.00030136,2]
[311687167,1705332641382,-202.46857956,0.00030136,2]
[311687169,1705332641391,-500.0,0.00030136,2]
[311687170,1705332641400,-830.81,0.00030136,2]
[311687171,1705332641408,-168.08126236,0.00030136,2]
[311687172,1705332641417,-500.0,0.00030136,2]
[311687173,1705332641426,-500.0,0.00030136,2]
[311687174,1705332641436,-500.0,0.00030136,2]
[311687175,1705332641445,-514.7,0.00030136,2]
[311687176,1705332641454,-500.0,0.00030136,2]
[311687177,1705332641464,-500.0,0.00030136,2]
[311687178,1705332641473,-500.0,0.00030136,2]
[311687179,1705332641482,-500.0,0.00030136,2]
[311687180,1705332641491,-500.0,0.00030136,2]
[311687181,1705332641501,-2306.55,0.00030136,2]
[311687182,1705332641510,-500.0,0.00030136,2]
[311687183,1705332641521,-254.4993865,0.00030136,2]
[311687184,1705332641530,-500.0,0.00030136,2]
[311687185,1705332641540,-500.0,0.00030136,2]
[311687186,1705332641549,-500.0,0.00030136,2]
[311687187,1705332641558,-500.0,0.00030136,2]
[311687188,1705332641567,-500.0,0.00030136,2]
[311687189,1705332641576,-500.0,0.00030136,2]
[311687190,1705332641585,-500.0,0.00030136,2]
[311687191,1705332641595,-500.0,0.00030136,2]
[311687192,1705332641605,-500.0,0.00030136,2]
[311687193,1705332641615,-388.41639368,0.00030136,2]
[311687194,1705332641625,-356.58383934,0.00030136,2]
[311687195,1705332641634,-1081.02,0.00030136,2]
[311687196,1705332641644,-500.0,0.00030136,2]
[311687197,1705332641653,-500.0,0.00030136,2]
[311687198,1705332641663,-500.0,0.00030136,2]
[311687199,1705332641672,-2435.36,0.00030136,2]
[311687200,1705332641682,-500.0,0.00030136,2]
[311687201,1705332641691,-500.0,0.00030136,2]
[311687202,1705332641700,-500.0,0.00030136,2]
[311687203,1705332641709,-502.82129946,0.00030136,2]
[311687204,1705332641720,-500.0,0.00030136,2]
[311687205,1705332641731,-505.17466226,0.00030136,2]
[311687206,1705332641740,-505.67458463,0.00030136,2]
[311687207,1705332641749,-500.0,0.00030136,2]
[311687208,1705332641759,-500.0,0.00030136,2]
[311687209,1705332641770,-500.49527847,0.00030136,2]
[311687210,1705332641781,-500.0,0.00030136,2]
[311687211,1705332641791,-500.0,0.00030136,2]
[311687212,1705332641800,-500.0,0.00030136,2]
[311687213,1705332641813,-518.29,0.00030136,2]
[311687214,1705332641822,-500.0,0.00030136,2]
[311687215,1705332641832,-4442.37,0.00030136,2]
[311687216,1705332641841,-500.0,0.00030136,2]
[311687217,1705332641850,-500.0,0.00030136,2]
[311687218,1705332641859,-500.0,0.00030136,2]
[311687219,1705332641869,-500.0,0.00030136,2]
[311687220,1705332641877,-19702.98,0.00030136,2]
[311687221,1705332641887,-500.0,0.00030136,2]
[311687222,1705332641896,-500.0,0.00030136,2]
[311687223,1705332641906,-500.0,0.00030136,2]
[311687224,1705332641915,-500.0,0.00030136,2]
[311687225,1705332641925,-1220.55,0.00030136,2]
[311687226,1705332641934,-500.0,0.00030136,2]
[311687227,1705332641943,-501.97924145,0.00030136,2]
[311687228,1705332641953,-313.9541795,0.00030136,2]
[311687229,1705332641963,-500.0,0.00030136,2]
[311687230,1705332641972,-500.0,0.00030136,2]
[311687231,1705332641982,-500.0,0.00030136,2]
[311687232,1705332641991,-1527.03,0.00030136,2]
[311687233,1705332642000,-500.0,0.00030136,2]
[311687234,1705332642009,-500.0,0.00030136,2]
[311687235,1705332642020,-500.0,0.00030136,2]
[311687236,1705332642030,-500.0,0.00030136,2]
[311687237,1705332642039,-500.0,0.00030136,2]
[311687238,1705332642049,-500.0,0.00030136,2]
[311687239,1705332642058,-500.0,0.00030136,2]
[311687240,1705332642067,-500.0,0.00030136,2]
[311687241,1705332642076,-500.0,0.00030136,2]
[311687242,1705332642086,-500.0,0.00030136,2]
[311687243,1705332642095,-500.0,0.00030136,2]
[311687244,1705332642103,-320.69145973,0.00030136,2]
[311687245,1705332642113,-169.67655628,0.00030136,2]
[311687246,1705332642122,-500.0,0.00030136,2]
[311687247,1705332642132,-500.0,0.00030136,2]
[311687248,1705332642143,-527.64,0.00030136,2]
[311687249,1705332642153,-3808.61,0.00030136,2]
[311687250,1705332642163,-4815.26,0.00030136,2]
[311687251,1705332642173,-500.0,0.00030136,2]
[311687252,1705332642182,-500.0,0.00030136,2]
[311687253,1705332642191,-500.0,0.00030136,2]
[311687254,1705332642200,-500.0,0.00030136,2]
[311687255,1705332642209,-500.0,0.00030136,2]
[311687256,1705332642218,-501.50596896,0.00030136,2]
[311687257,1705332642227,-602.05912595,0.00030136,2]
[311687258,1705332642236,-500.0,0.00030136,2]
[311687259,1705332642245,-500.0,0.00030136,2]
[311687260,1705332642254,-500.0,0.00030136,2]
[311687261,1705332642264,-500.0,0.00030136,2]
[311687262,1705332642274,-500.0,0.00030136,2]
[311687263,1705332642283,-500.0,0.00030136,2]
[311687264,1705332642293,-500.0,0.00030136,2]
[311687265,1705332642302,-500.0,0.00030136,2]
[311687266,1705332642311,-500.0,0.00030136,2]
[311687267,1705332642320,-500.0,0.00030136,2]
[311687268,1705332642329,-500.0,0.00030136,2]
[311687269,1705332642337,-523.08396244,0.00030136,2]
[311687270,1705332642347,-746.17,0.00030136,2]
[311687271,1705332642356,-500.0,0.00030136,2]
[311687272,1705332642365,-501.21255682,0.00030136,2]
[311687273,1705332642374,-1000.0,0.00030136,2]
[311687274,1705332642383,-437.22900269,0.00030136,2]
[311687275,1705332642392,-500.0,0.00030136,2]
[311687276,1705332642401,-500.0,0.00030136,2]
[311687277,1705332642410,-500.0,0.00030136,2]
[311687278,1705332642420,-500.0,0.00030136,2]
[311687279,1705332642429,-502.40752343,0.00030136,2]
[311687280,1705332642438,-500.0,0.00030136,2]
[311687281,1705332642447,-500.0,0.00030136,2]
[311687282,1705332642456,-500.0,0.00030136,2]
[311687283,1705332642465,-548.52081002,0.00030136,2]
[311687284,1705332642475,-500.0,0.00030136,2]
[311687285,1705332642483,-479.34081517,0.00030136,2]
[311687286,1705332642492,-500.0,0.00030136,2]
[311687287,1705332642502,-920.08,0.00030136,2]
[311687288,1705332642511,-500.0,0.00030136,2]
[311687289,1705332642521,-500.88114672,0.00030136,2]
[311687290,1705332642530,-500.0,0.00030136,2]
[311687291,1705332642539,-500.0,0.00030136,2]
[311687292,1705332642548,-414.80633094,0.00030136,2]
[311687293,1705332642558,-1821.49,0.00030136,2]
[311687294,1705332642567,-500.0,0.00030136,2]
[311687295,1705332642577,-153.0,0.00030137,2]
[311687296,1705332642586,-441.8574589,0.00030137,2]
[311687297,1705332642595,-169.1879247,0.00030137,2]
[311687298,1705332642604,-153.0,0.00030137,2]
[311687299,1705332642614,-153.1880119,0.00030137,2]
[311687300,1705332642623,-154.6228574,0.00030137,2]
[311687301,1705332642634,-306.0,0.00030137,2]
[311687302,1705332642643,-153.0,0.00030137,2]
[311687303,1705332642652,-153.0,0.00030137,2]
[311687304,1705332642661,-153.0,0.00030137,2]
[311687305,1705332642670,-153.0,0.00030137,2]
[311687306,1705332642679,-153.0,0.00030137,2]
[311687307,1705332642688,-198.8577961,0.00030137,2]
[311687308,1705332642697,-153.0,0.00030137,2]
[311687310,1705332642707,-153.0,0.00030137,2]
[311687312,1705332642716,-153.0,0.00030137,2]
[311687314,1705332642727,-153.0,0.00030137,2]
[311687316,1705332642738,-198.8577961,0.00030137,2]
[311687318,1705332642747,-153.0,0.00030137,2]
[311687320,1705332642756,-153.0,0.00030137,2]
[311687322,1705332642765,-198.8577961,0.00030137,2]
[311687324,1705332642776,-153.0,0.00030137,2]
[311687326,1705332642784,-198.8577961,0.00030137,2]
[311687327,1705332642793,-153.0,0.00030137,2]
[311687329,1705332642802,-198.8577961,0.00030137,2]
[311687331,1705332642812,-153.0,0.00030137,2]
[311687332,1705332642821,-198.8577961,0.00030137,2]
[311687333,1705332642830,-198.8577961,0.00030137,2]
[311687334,1705332642840,-153.0,0.00030137,2]
[311687336,1705332642849,-153.0,0.00030137,2]
[311687338,1705332642858,-205.1344058,0.00030137,2]
[311687340,1705332642867,-198.8577961,0.00030137,2]
[311687356,1705332642944,-198.8577961,0.00030137,2]
[311687359,1705332642954,-198.8577961,0.00030137,2]
[311687361,1705332642964,-201.6787684,0.00030137,2]
[311687363,1705332642973,-405.67767986,0.00030137,2]
[311687365,1705332642983,-296.62565179,0.00030145,2]
[311687368,1705332642993,-516.06812545,0.00030198,2]
[311687370,1705332643002,-232.68956354,0.00030198,2]
[311687372,1705332643012,-296.62565179,0.00030255,2]
[311687374,1705332643023,-296.62565179,0.00030364,2]
[311687376,1705332643032,-500.0,0.0003041,2]
[311687378,1705332643040,-500.0,0.0003041,2]
[311687380,1705332643050,-504.19080815,0.0003041,2]
[311687382,1705332643059,-500.0,0.0003041,2]
[311687384,1705332643068,-500.0,0.0003041,2]
[311687386,1705332643077,-500.0,0.0003041,2]
[311687388,1705332643086,-500.0,0.0003041,2]
[311687390,1705332643095,-500.0,0.0003041,2]
[311687392,1705332643104,-500.0,0.0003041,2]
[311687394,1705332643114,-321.69597861,0.0003041,2]
[311687396,1705332643123,-728.93,0.0003041,2]
[311687398,1705332643133,-500.0,0.0003041,2]
[311687400,1705332643142,-500.0,0.0003041,2]
[311687402,1705332643150,-500.0,0.0003041,2]
[311687404,1705332643159,-500.0,0.0003041,2]
[311687406,1705332643168,-500.0,0.0003041,2]
[311687408,1705332643177,-1102.71,0.0003041,2]
[311687410,1705332643186,-511.99158652,0.0003041,2]
[311687412,1705332643195,-502.69230495,0.0003041,2]
[311687414,1705332643205,-503.98676531,0.0003041,2]
[311687416,1705332643214,-500.0,0.0003041,2]
[311687418,1705332643223,-220.0,0.0003041,2]
[311687420,1705332643232,-502.26499882,0.0003041,2]
[311687422,1705332643241,-500.0,0.0003041,2]
[311687424,1705332643250,-500.0,0.0003041,2]
[311687426,1705332643259,-500.85728757,0.0003041,2]
[311687428,1705332643268,-500.0,0.0003041,2]
[311687430,1705332643278,-501.22037415,0.0003041,2]
[311687432,1705332643287,-500.0,0.0003041,2]
[311687434,1705332643296,-500.0,0.0003041,2]
[311687435,1705332643305,-301.6619477,0.0003041,2]
[311687437,1705332643314,-500.0,0.0003041,2]
[311687439,1705332643323,-500.0,0.0003041,2]
[311687441,1705332643332,-538.9977585,0.0003041,2]
[311687443,1705332643341,-500.0,0.0003041,2]
[311687444,1705332643350,-685.96,0.0003041,2]
[311687445,1705332643359,-500.3216455,0.0003041,2]
[311687446,1705332643368,-496.84283628,0.0003041,2]
[311687447,1705332643377,-500.0,0.0003041,2]
[311687448,1705332643386,-500.0,0.0003041,2]
[311687449,1705332643396,-500.0,0.0003041,2]
[311687450,1705332643405,-615.27474198,0.0003041,2]
[311687451,1705332643414,-254.87564764,0.0003041,2]
[311687452,1705332643423,-500.0,0.0003041,2]
[311687453,1705332643432,-246.18593123,0.0003041,2]
[311687454,1705332643442,-500.0,0.0003041,2]
[311687455,1705332643451,-530.36149923,0.0003041,2]
[311687456,1705332643460,-500.91038738,0.0003041,2]
[311687457,1705332643469,-500.0,0.0003041,2]
[311687458,1705332643478,-500.0,0.0003041,2]
[311687459,1705332643487,-500.0,0.0003041,2]
[311687461,1705332643497,-593.5,0.0003041,2]
[311687464,1705332643506,-500.0,0.0003041,2]
[311687467,1705332643515,-500.0,0.0003041,2]
[311687470,1705332643526,-803.14,0.0003041,2]
[311687473,1705332643534,-500.0,0.0003041,2]
[311687476,1705332643543,-500.0,0.0003041,2]
[311687479,1705332643553,-507.82176411,0.0003041,2]
[311687481,1705332643562,-500.0,0.0003041,2]
[311687484,1705332643571,-500.0,0.0003041,2]
[311687485,1705332643580,-577.18,0.0003041,2]
[311687486,1705332643589,-500.0,0.0003041,2]
[311687488,1705332643599,-500.0,0.0003041,2]
[311687490,1705332643608,-507.41897844,0.0003041,2]
[311687491,1705332643617,-500.0,0.0003041,2]
[311687492,1705332643626,-500.0,0.0003041,2]
[311687493,1705332643635,-505.69137092,0.0003041,2]
[311687494,1705332643645,-401.59386146,0.0003041,2]
[311687495,1705332643653,-500.0,0.0003041,2]
[311687496,1705332643663,-383.87330556,0.0003041,2]
[311687497,1705332643672,-570.53074676,0.0003041,2]
[311687498,1705332643681,-500.0,0.0003041,2]
[311687499,1705332643690,-500.0,0.0003041,2]
[311687500,1705332643699,-500.0,0.0003041,2]
[311687501,1705332643709,-500.0,0.0003041,2]
[311687502,1705332643719,-500.0,0.0003041,2]
[311687503,1705332643731,-500.0,0.0003041,2]
[311687504,1705332643740,-1159.72,0.0003041,2]
[311687505,1705332643749,-500.0,0.0003041,2]
[311687506,1705332643759,-500.0,0.0003041,2]
[311687507,1705332643767,-500.0,0.0003041,2]
[311687508,1705332643779,-500.0,0.0003041,2]
[311687509,1705332643788,-500.0,0.0003041,2]
[311687510,1705332643798,-531.48001928,0.0003041,2]
[311687511,1705332643808,-500.0,0.0003041,2]
[311687512,1705332643817,-532.54,0.0003041,2]
[311687513,1705332643827,-501.08375039,0.0003041,2]
[311687514,1705332643836,-500.0,0.0003041,2]
[311687515,1705332643846,-420.44547826,0.0003041,2]
[311687516,1705332643855,-189.61033351,0.0003041,2]
[311687517,1705332643864,-500.0,0.0003041,2]
[311687518,1705332643873,-500.0,0.0003041,2]
[311687519,1705332643882,-500.0,0.0003041,2]
[311687520,1705332643891,-500.0,0.0003041,2]
[311687521,1705332643900,-500.0,0.0003041,2]
[311687522,1705332643909,-500.80431623,0.0003041,2]
[311687523,1705332643918,-589.69,0.0003041,2]
[311687524,1705332643928,-500.0,0.0003041,2]
[311687525,1705332643937,-1000.0,0.0003041,2]
[311687526,1705332643946,-500.0,0.0003041,2]
[311687527,1705332643955,-500.0,0.0003041,2]
[311687528,1705332643965,-500.0,0.0003041,2]
[311687529,1705332643974,-10029.87534116,0.0003041,10]
[311687530,1705332643982,-500.0,0.0003041,2]
[311687531,1705332643991,-500.0,0.0003041,2]
[311687532,1705332644002,-500.0,0.0003041,2]
[311687533,1705332644011,-619.09681012,0.0003041,2]
[311687534,1705332644022,-500.0,0.0003041,2]
[311687535,1705332644031,-500.0,0.0003041,2]
[311687536,1705332644040,-500.0,0.0003041,2]
[311687537,1705332644049,-500.0,0.0003041,2]
[311687538,1705332644059,-500.0,0.0003041,2]
[311687539,1705332644068,-833.3,0.0003041,2]
[311687540,1705332644077,-809.93,0.0003041,2]
[311687541,1705332644086,-504.38492076,0.0003041,2]
[311687542,1705332644095,-531.08430397,0.0003041,2]
[311687543,1705332644104,-500.0,0.0003041,2]
[311687544,1705332644114,-500.0,0.0003041,2]
[311687545,1705332644123,-500.0,0.0003041,2]
[311687546,1705332644132,-415.79701904,0.0003041,2]
[311687547,1705332644141,-500.0,0.0003041,2]
[311687548,1705332644150,-500.0,0.0003041,2]
[311687549,1705332644160,-502.10644996,0.0003041,2]
[311687550,1705332644170,-620.7001689,0.0003041,2]
[311687551,1705332644179,-507.23683336,0.0003041,2]
[311687552,1705332644188,-1000.0,0.0003041,5]
[311687553,1705332644197,-500.0,0.0003041,2]
[311687554,1705332644207,-500.73512296,0.0003041,2]
[311687555,1705332644216,-500.0,0.0003041,2]
[311687556,1705332644225,-500.0,0.0003041,2]
[311687557,1705332644234,-508.42158599,0.0003041,2]
[311687558,1705332644243,-500.0,0.0003041,2]
[311687559,1705332644254,-202.92742487,0.0003041,2]
[311687560,1705332644263,-500.0,0.0003041,2]
[311687561,1705332644273,-501.11049196,0.0003041,2]
[311687562,1705332644282,-766.96,0.0003041,2]
[311687563,1705332644291,-500.0,0.0003041,2]
[311687564,1705332644300,-500.0,0.0003041,2]
[311687565,1705332644309,-500.0,0.0003041,2]
[311687566,1705332644318,-502.93276528,0.0003041,2]
[311687567,1705332644327,-348.96678123,0.0003041,2]
[311687568,1705332644337,-500.0,0.0003041,2]
[311687569,1705332644346,-501.31127598,0.0003041,2]
[311687570,1705332644422,-500.0,0.0003041,2]
[311687571,1705332644431,-500.0,0.0003041,2]
[311687572,1705332644440,-504.58019744,0.0003041,2]
[311687573,1705332644450,-500.0,0.0003041,2]
[311687574,1705332644459,-500.0,0.0003041,2]
[311687575,1705332644468,-830.81,0.0003041,2]
[311687576,1705332644477,-500.0,0.0003041,2]
[311687577,1705332644486,-281.47680327,0.0003041,2]
[311687578,1705332644495,-514.7,0.0003041,2]
[311687579,1705332644504,-253.24117854,0.0003041,2]
[311687580,1705332644513,-500.0,0.0003041,2]
[311687581,1705332644524,-2306.55,0.0003041,2]
[311687582,1705332644533,-506.080899,0.0003041,2]
[311687583,1705332644543,-500.48723429,0.0003041,2]
[311687584,1705332644555,-1081.02,0.0003041,2]
[311687585,1705332644564,-500.0,0.0003041,2]
[311687586,1705332644572,-500.0,0.0003041,2]
[311687587,1705332644582,-2435.36,0.0003041,2]
[311687588,1705332644590,-559.57981711,0.0003041,2]
[311687589,1705332644599,-500.0,0.0003041,2]
[311687590,1705332644607,-505.37573343,0.0003041,2]
[311687591,1705332644616,-500.0,0.0003041,2]
[311687592,1705332644626,-500.0,0.0003041,2]
[311687593,1705332644635,-500.0,0.0003041,2]
[311687594,1705332644644,-503.56970682,0.0003041,2]
[311687595,1705332644654,-518.29,0.0003041,2]
[311687596,1705332644663,-500.0,0.0003041,2]
[311687597,1705332644672,-4442.37,0.0003041,2]
[311687598,1705332644682,-500.0,0.0003041,2]
[311687599,1705332644691,-225.46911807,0.0003041,2]
[311687600,1705332644701,-500.0,0.0003041,2]
[311687601,1705332644711,-19702.98,0.0003041,2]
[311687602,1705332644720,-502.10441126,0.0003041,2]
[311687603,1705332644732,-500.0,0.0003041,2]
[311687604,1705332644741,-500.0,0.0003041,2]
[311687605,1705332644750,-1220.55,0.0003041,2]
[311687606,1705332644760,-312.25901407,0.0003041,2]
[311687607,1705332644769,-500.0,0.0003041,2]
[311687608,1705332644783,-500.0,0.0003041,2]
[311687609,1705332644792,-500.0,0.0003041,2]
[311687610,1705332644802,-1527.03,0.0003041,2]
[311687611,1705332644811,-500.0,0.0003041,2]
[311687612,1705332644821,-500.0,0.0003041,2]
[311687613,1705332644831,-500.0,0.0003041,2]
[311687614,1705332644839,-500.0,0.0003041,2]
[311687615,1705332644848,-500.0,0.0003041,2]
[311687616,1705332644858,-500.0,0.0003041,2]
[311687617,1705332644867,-500.0,0.0003041,2]
[311687618,1705332644876,-500.0,0.0003041,2]
[311687619,1705332644886,-500.0,0.0003041,2]
[311687620,1705332644895,-500.0,0.0003041,2]
[311687621,1705332644904,-527.64,0.0003041,2]
[311687622,1705332644913,-3808.61,0.0003041,2]
[311687623,1705332644922,-4815.26,0.0003041,2]
[311687624,1705332644931,-500.56900131,0.0003041,2]
[311687625,1705332644940,-500.0,0.0003041,2]
[311687626,1705332644949,-746.17,0.0003041,2]
[311687627,1705332644957,-500.0,0.0003041,2]
[311687628,1705332644967,-938.12005383,0.0003041,2]
[311687629,1705332644976,-500.0,0.0003041,2]
[311687630,1705332644985,-502.5187616,0.0003041,2]
[311687631,1705332644994,-500.0,0.0003041,2]
[311687632,1705332645004,-500.0,0.0003041,2]
[311687633,1705332645012,-500.0,0.0003041,2]
[311687634,1705332645024,-504.355808,0.0003041,2]
[311687635,1705332645033,-920.08,0.0003041,2]
[311687636,1705332645042,-500.0,0.0003041,2]
[311687637,1705332645051,-500.0,0.0003041,2]
[311687638,1705332645060,-500.0,0.0003041,2]
[311687639,1705332645071,-1821.49,0.0003041,2]
[311687640,1705332645081,-296.62565179,0.00030473,2]
[311687641,1705332645090,-1384.26789293,0.00030572,3]
[311687642,1705332645099,-31656.81655655,0.00030573,5]
[311687643,1705332645109,-50000.0,0.00030573,3]
[311687644,1705332645119,-50000.0,0.00030573,3]
[311687645,1705332645128,-50000.0,0.00030573,3]
[311687646,1705332645137,-50000.0,0.00030573,3]
[311687647,1705332645146,-29086.31253788,0.00030573,3]
[311687648,1705332645171,-1978.00844903,0.00030573,3]
[311687649,1705332645362,-155.0,0.00022406,2]
[311687650,1705332645371,-231.565,0.00022407,2]
[311687651,1705332645428,-698.63906729,0.00022407,2]
[311687652,1705332645440,-4290.0,0.00022407,2]
[311687653,1705332645452,-1278.14042003,0.00022407,2]
[311687660,1705332645863,-12382.51455746,0.00022407,2]
[311687661,1705332645873,-3051.49,0.0002988,3]
[311687662,1705332645882,-32331.73537493,0.00030573,3]
[311687663,1705332645896,-19874.35816179,0.00030573,3]
[311687724,1705332657890,481.60044733,0.00020171,2]
[311687725,1705332695484,292.87321948,0.00022,4]
[311687753,1705333832453,-155.0,0.00024327,2]
[311687754,1705333832468,-1196.17159553,0.00024327,2]
[311687755,1705333832484,-155.0,0.00024328,2]
[311687756,1705333832497,-191.16884209,0.00024329,2]
[311687757,1705333832512,-327.03801435,0.0002433,2]
[311687758,1705333832526,-322.69466175,0.0002433,2]
[311687759,1705333832542,-3126.02728391,0.00024331,2]
[311687760,1705333832556,-902.37527688,0.00024331,2]
[311687761,1705333832569,-155.0,0.00024331,4]
[311687762,1705333832582,-166.666666,0.00024366,2]
[311687763,1705333832595,-668.46648714,0.00024742,2]
[311687764,1705333832606,-24900.0,0.00024743,2]
[311687766,1705333832619,-172.4989008,0.00024796,2]
[311687769,1705333832632,-4715.73548857,0.00025,2]
[311687771,1705333832645,-1044.83564264,0.00025,2]
[311687773,1705333832658,-170.777702,0.00025163,2]
[311687776,1705333832673,-166.666666,0.00026027,2]
[311687778,1705333832687,-3478.12894861,0.00026589,2]
[311687781,1705333832701,-200.0,0.00026769,15]
[311687783,1705333832713,-289.77163343,0.00027,2]
[311687785,1705333832724,-461.06432413,0.00027,2]
[311687788,1705333832742,-245.87128027,0.00027133,2]
[311687790,1705333832755,-500.0,0.00027397,2]
[311687792,1705333832768,-67.64811055,0.00027397,2]
[311687793,1705333832788,-432.35188945,0.00027397,2]
[311687794,1705333832801,-500.0,0.00027397,2]
[311687795,1705333832813,-500.0,0.00027397,2]
[311687796,1705333832825,-500.0,0.00027397,2]
[311687797,1705333832838,-500.0,0.00027397,2]
[311687798,1705333832851,-500.0,0.00027397,2]
[311687799,1705333832865,-500.0,0.00027397,2]
[311687800,1705333832878,-500.0,0.00027397,2]
[311687801,1705333832891,-500.0,0.00027397,2]
[311687802,1705333832902,-500.0,0.00027397,2]
[311687803,1705333832913,-500.0,0.00027397,2]
[311687804,1705333832923,-500.0,0.00027397,2]
[311687805,1705333832935,-500.0,0.00027397,2]
[311687806,1705333832948,-500.0,0.00027397,2]
[311687807,1705333832960,-330.8835941,0.00027397,2]
[311687808,1705333832972,-259.90265587,0.00027397,2]
[311687809,1705333832985,-10135.33451069,0.000274,2]
[311687810,1705333832996,-166.666666,0.00027688,2]
[311687811,1705333833007,-737.86716377,0.000277,2]
[311687812,1705333833018,-3450.25527183,0.00028473,2]
[311687813,1705333833030,-280.0,0.00029445,15]
[311687814,1705333833041,-5839.11,0.0002977,3]
[311687815,1705333833053,-7006.94,0.0002978,3]
[311687816,1705333833064,-4793.31,0.0002979,3]
[311687817,1705333833075,-23039.1227662,0.000298,2]
[311687818,1705333833086,-308.94428585,0.000299,2]
[311687819,1705333833099,-500.0,0.00029999,2]
[311687820,1705333833111,-586.29502355,0.0003,3]
[311687821,1705333833122,-297.8809135,0.0003,4]
[311687822,1705333833134,-38489.8328689,0.0003,4]
[311687823,1705333833149,-4444.6,0.0003,4]
[311687855,1705333838479,-75759.59032998,0.0003,4]
[311687856,1705333838491,-368.63202806,0.0003,5]
[311687858,1705333838501,-308.94428583,0.00030003,2]
[311687860,1705333838511,-308.94428583,0.00030105,2]
[311687862,1705333838551,-689.42492833,0.00030134,4]
[311687864,1705333838560,-642.13204501,0.00030134,4]
[311687866,1705333838569,-465.07086778,0.00030134,4]
[311687868,1705333838580,-6252.81643495,0.00030135,4]
[311687871,1705333838589,-500.0,0.00030136,2]
[311687872,1705333838599,-500.0,0.00030136,2]
[311687873,1705333838608,-1625.96081525,0.00030136,2]
[311687874,1705333838617,-500.0,0.00030136,2]
[311687875,1705333838626,-500.0,0.00030136,2]
[311687876,1705333838635,-539.45,0.00030136,2]
[311687877,1705333838644,-500.0,0.00030136,2]
[311687878,1705333838653,-502.42678744,0.00030136,2]
[311687879,1705333838662,-500.0,0.00030136,2]
[311687880,1705333838671,-496.66696298,0.00030136,2]
[311687881,1705333838681,-497.72312481,0.00030136,2]
[311687882,1705333838690,-497.11586572,0.00030136,2]
[311687883,1705333838699,-500.0,0.00030136,2]
[311687884,1705333838708,-500.0,0.00030136,2]
[311687885,1705333838718,-500.0,0.00030136,2]
[311687886,1705333838727,-488.22852689,0.00030136,2]
[311687887,1705333838738,-504.42523634,0.00030136,2]
[311687888,1705333838747,-500.0,0.00030136,2]
[311687889,1705333838758,-500.0,0.00030136,2]
[311687890,1705333838767,-500.0,0.00030136,2]
[311687891,1705333838776,-500.0,0.00030136,2]
[311687892,1705333838785,-500.0,0.00030136,2]
[311687893,1705333838794,-627.39276305,0.00030136,2]
[311687894,1705333838803,-500.0,0.00030136,2]
[311687895,1705333838812,-500.0,0.00030136,2]
[311687896,1705333838822,-562.53,0.00030136,2]
[311687897,1705333838833,-503.84730976,0.00030136,2]
[311687898,1705333838842,-500.0,0.00030136,2]
[311687899,1705333838851,-500.0,0.00030136,2]
[311687900,1705333838861,-500.0,0.00030136,2]